Cogmind - Beta 15 @@@ ROGUE MODE // 2025.07.15 @ 22:30:22 Player: Rockstar Result: Destroyed by G-67 Veteran with Field Laser Performance ------------- Evolutions (7) 3500 Regions Visited (9) 1800 Robots Destroyed (43) 215 Value Destroyed (1847) 1847 Prototype IDs (3) 60 Alien Tech Used (0) 0 Bonus (1528) 1528 TOTAL SCORE: 8950 Bonus ------- Follower Combat Kills 228 Entered DSFs 500 Registered with UFD 300 Met Optimus in HQ 500 Cogmind --------- Core Integrity 0/1300 Matter 254/300 Energy 69/100 System Corruption 0% Temperature Cool (46) Movement Core (50) Location -3/Research Parts ------- > --- POWER (2) -------- (None) > --- PROPULSION (8) --- (None) > --- UTILITY (8) ------ Signal Interpreter Terrain Scan Processor > --- WEAPON (3) ------- (None) > --- INVENTORY (5) ---- Micro Antimatter Reactor Advanced Heat Sink High-capacity Storage Unit Tesla Rifle Coil Gun Peak State ------------ > --- POWER ------------ Light Nuclear Core Neutrino Core > --- PROPULSION ------- Advanced Treads Advanced Treads Advanced Treads Improved Medium Treads Improved Medium Treads Improved Medium Treads > --- UTILITY ---------- Improved Heat Sink Advanced Heat Sink High-capacity Storage Unit Signal Interpreter Terrain Scan Processor Hacking Suite Improved Component Analysis Suite > --- WEAPON ----------- Advanced Plasma Cannon Advanced Plasma Cannon > --- INVENTORY -------- Light Nuclear Core Advanced Treads Advanced Treads Advanced Treads Advanced Treads Advanced Treads Advanced Treads Advanced Heat Sink Improved Cooling System Improved Cooling System Improved Cooling System High-capacity Storage Unit Improved Medium Armor Plating Advanced Plasma Cannon Advanced Plasma Cannon Advanced Assault Cannon Advanced Assault Cannon Greatsword Falx [Rating: 73] Favorites ----------- Power Ion Engine Engine Ion Engine Power Core Fusion Compressor Reactor Light Antimatter Reactor Propulsion Aluminum Leg Treads Advanced Treads Leg Aluminum Leg Wheel Armored Huge Wheel Hover Unit Antigrav System Utility Signal Interpreter Device Improved Heat Sink Storage Medium Storage Unit Processor Signal Interpreter Hackware Hacking Suite Protection Improved Medium Armor Plating Weapon Beam Cannon Energy Gun Subdweller Laser Energy Cannon Beam Cannon Ballistic Gun Assault Rifle Ballistic Cannon Advanced Assault Cannon Special Weapon Mining Laser Slashing Weapon Mining Claw Build | -11 -10 -10 -10 -9 -6 -6 -5 -4 -3 ------- Run | Yrd Mat Min Sub Scr Fac DSF Fac Fac Res Slots Evolved 14 | . . . . . 8 . 2 2 2 Power 1 | . . . . . 1 . . . . Propulsion 6 | . . . . . 4 . . . 2 Utility 6 | . . . . . 3 . 2 1 . Weapon 1 | . . . . . . . . 1 . Parts Attached 99 | 6 14 3 8 5 6 12 20 21 4 Power 12 | 1 2 . 2 . 1 . 3 3 . Engine 4 | 1 1 . 2 . . . . . . Core 6 | . 1 . . . 1 . 3 1 . Reactor 2 | . . . . . . . . 2 . Propulsion 28 | 2 4 1 . 2 2 4 7 5 1 Treads 13 | . . . . . . 4 7 2 . Leg 9 | . 4 1 . 1 . . . 2 1 Wheel 5 | 2 . . . 1 2 . . . . Hover 1 | . . . . . . . . 1 . Flight . | . . . . . . . . . . Utility 33 | 1 4 1 . 2 2 3 7 10 3 Device 22 | . 3 . . . 2 3 4 7 3 Storage 5 | 1 1 . . 2 . . . 1 . Processor 3 | . . 1 . . . . 1 1 . Hackware 2 | . . . . . . . 1 1 . Protection 1 | . . . . . . . 1 . . Artifact . | . . . . . . . . . . Weapon 26 | 2 4 1 6 1 1 5 3 3 . Energy Gun 2 | 1 . . 1 . . . . . . Energy Cannon 11 | . 3 1 2 . 1 2 2 . . Ballistic Gun 5 | 1 . . 2 . . . . 2 . Ballistic Cannon 4 | . . . . . . 3 . 1 . Launcher . | . . . . . . . . . . Special Weapon 1 | . 1 . . . . . . . . Impact Weapon . | . . . . . . . . . . Slashing Weapon 3 | . . . 1 1 . . 1 . . Piercing Weapon . | . . . . . . . . . . Special Melee Weapon . | . . . . . . . . . . Unidentified Prototypes . | . . . . . . . . . . Parts Lost 50 | . 3 . 3 . . 4 11 25 4 Power 8 | . 1 . 1 . . . 1 5 . Propulsion 16 | . 1 . 1 . . . 7 7 . Utility 18 | . 1 . . . . 3 3 7 4 Weapon 8 | . . . 1 . . 1 . 6 . Highest Loss Streak 16 | . 1 . 3 . . 2 11 16 3 To Critical Strikes . | . . . . . . . . . . Average Backups 10 | 1 9 9 9 11 13 14 17 11 5 Power . | . . . . . . . . . . Propulsion 1 | . 1 1 1 1 1 2 5 . . Utility 4 | . 2 3 4 5 6 5 5 6 2 Weapon 4 | . 3 3 4 4 5 6 5 3 2 Tool/Special . | . . . . . . . . . . Unused Backups 31 | . 3 3 . 1 2 15 2 2 3 Power 2 | . 1 . . . . . . . 1 Propulsion 9 | . . . . . 1 8 . . . Utility 14 | . . 3 . 1 1 5 1 2 1 Weapon 6 | . 2 . . . . 2 1 . 1 Tool/Special . | . . . . . . . . . . Average Slot Usage (%) 83 | . 98 100 84 79 64 67 92 79 16 Engine 4 | . 9 14 6 . . . . . . Core 2 | . 4 . . . . 6 8 5 . Treads 5 | . . . . . . 4 33 13 . Leg 13 | . 12 28 21 18 . . . 3 1 Wheel 4 | . 15 . . 4 19 16 . . . Device 7 | . 12 3 . . 18 16 15 21 . Storage 11 | . 14 13 14 14 6 6 5 7 . Processor 10 | . . 11 14 14 6 6 9 10 11 Energy Cannon 14 | . 19 28 17 14 12 5 8 9 . Ballistic Gun 1 | . 6 . 2 . . . . . . Slashing Weapon 4 | . . . 7 14 . . 1 . . Peak Build Rating 73 | 6 12 10 11 20 48 58 73 73 24 Average Rating 25 | 4 9 8 8 12 43 48 62 60 14 On Entrance 21 | . 6 10 8 7 20 48 58 46 16 Naked Turns . | . . . . . . . . . . Heaviest Build 96 | 13 23 22 26 50 64 65 87 96 6 Greatest Support 156 | 26 26 20 20 28 28 90 156 88 28 Greatest Overweight (x) 15 | . 2 1 1 9 2 2 1 15 1 Average Overweight (x) . | . . 1 . . 2 1 . 1 . Largest Inventory Capacity 20 | 8 10 10 10 20 20 20 20 20 5 Average Capacity 13 | 6 9 9 10 14 20 20 20 19 5 Most Carried 20 | 4 10 10 10 20 20 20 20 15 5 Average Carried 11 | 2 9 9 9 12 16 16 17 11 4 Final Capacity 20 | 8 10 10 10 20 20 20 20 5 5 Final Carried 20 | 4 10 9 9 20 16 20 12 5 5 Class Distribution -------------------- 76% | Mutant 9% | Scavenger-Mutant 8% | Scavenger-Skirmisher 5% | Skirmisher Dominant Class ---------------- Mutant | -10/Materials Mutant | -10/Mines Mutant | -10/Subcaves Mutant | -9/Scraptown Skirmisher | -6/Factory Mutant | -6/DSF Scavenger-Mutant | -5/Factory Scavenger-Skirmisher | -4/Factory Mutant | -3/Research Resources | -11 -10 -10 -10 -9 -6 -6 -5 -4 -3 ----------- Run | Yrd Mat Min Sub Scr Fac DSF Fac Fac Res Matter Collected 1738 | 260 192 98 91 30 . 275 217 444 131 Remotely . | . . . . . . . . . . Salvage Created 1866 | . 491 77 175 . . 188 454 481 . Parts 102 | . 26 1 6 . . 19 24 26 . Haulers Intercepted 1 | . 1 . . . . . . . . Recyclers Shooed 3 | . 1 . . . . . . 2 . Parts Field Recycled . | . . . . . . . . . . Retrieved Matter . | . . . . . . . . . . Parts Self-Destructed 8 | . . . 8 . . . . . . Prevented . | . . . . . . . . . . Kills | -11 -10 -10 -10 -9 -6 -6 -5 -4 -3 ------- Run | Yrd Mat Min Sub Scr Fac DSF Fac Fac Res Combat Hostiles Destroyed 38 | . 11 2 3 . . 5 9 8 . Melee 2 | . . . . . . . 2 . . Guns 4 | . 2 . 1 . . . . 1 . Cannons 31 | . 9 2 2 . . 5 7 6 . AOE 1 | . . . . . . . . 1 . Classes Destroyed 13 | . 4 . 1 . . 2 3 3 . Worker 1 | . . . . . . . . 1 . Builder 2 | . . . . . . . 1 1 . Hauler 1 | . 1 . . . . . . . . Watcher 1 | . 1 . . . . . . . . Swarmer 8 | . 2 . . . . 3 3 . . Cutter 1 | . . . . . . . 1 . . Grunt 16 | . 9 2 . . . . 4 1 . Duelist 1 | . . . . . . . 1 . . Specialist 1 | . . . . . . 1 . . . Hunter 4 | . . . . . . . . 4 . Programmer 3 | . . . . . . . . 3 . Heavy 1 | . . . . . . 1 . . . Subdweller 3 | . . . 3 . . . . . . Best Kill Streak 4 | . 3 2 1 . . 3 4 4 . Combat Bots Only 4 | . 2 2 1 . . 3 4 2 . Max Kills in Single Turn 2 | . 1 1 1 . . 1 2 1 . Gunslinging . | . . . . . . . . . . Exploded 1 | . . . . . . . . 1 . Melee 1 | . . . . . . . 1 . . Uniques/NPCs Destroyed . | . . . . . . . . . . Combat | -11 -10 -10 -10 -9 -6 -6 -5 -4 -3 -------- Run | Yrd Mat Min Sub Scr Fac DSF Fac Fac Res Hostile Shots Fired 727 | . 51 13 32 . . 91 132 266 142 Missed 232 | . 9 3 7 . . 32 37 81 63 Hits 495 | . 42 10 25 . . 59 95 185 79 Melee 12 | . . . . . . . 12 . . Projectile 483 | . 42 10 25 . . 59 83 185 79 Critical Strikes 20 | . 2 . 1 . . 2 7 7 1 Part Disruptions 3 | . . . . . . 1 . 2 . Damage Taken 9757 | . 480 124 586 . . 1122 2305 3497 1643 Core 3006 | . 104 12 69 . . 235 245 1030 1311 Absorbed by Shields . | . . . . . . . . . . Core Remaining (%) 56 | 100 . . . 26 . 72 75 10 . Volleys Fired 171 | . 39 7 29 . . 27 29 40 . Largest 3 | . 2 2 2 . . 2 2 3 . Hottest 294 | . 120 120 120 . . 196 196 294 . Shots Fired 320 | . 76 14 41 . . 48 48 93 . Gun 36 | . 17 . 9 . . . . 10 . Cannon 282 | . 57 14 32 . . 48 48 83 . Launcher . | . . . . . . . . . . Special 2 | . 2 . . . . . . . . Kinetic 96 | . 17 . 2 . . 25 . 52 . Thermal 224 | . 59 14 39 . . 23 48 41 . Explosive . | . . . . . . . . . . Electromagnetic . | . . . . . . . . . . Robot Hit Streak 19 | . 7 2 6 . . 9 18 19 . Robot Miss Streak 4 | . 3 1 3 . . 3 3 4 . Penetration Max . | . . . . . . . . . . Secondary Targets 1 | . . . . . . . . 1 . Max Gunslinging Chain 1 | . . . . . . . . 1 . Shots Hit Robots 193 | . 46 8 24 . . 29 36 50 . Core Hits 66 | . 20 3 4 . . 9 12 18 . Critical Kills 1 | . . . . . . . . 1 . Critical Parts Destroyed . | . . . . . . . . . . Critical Strikes 3 | . . . . . . . . 3 . Destroy 1 | . . . . . . . . 1 . Blast 2 | . . . . . . . . 2 . Melee Attacks 16 | . . . 13 . . . 2 1 . Impact . | . . . . . . . . . . Slashing 16 | . . . 13 . . . 2 1 . Piercing . | . . . . . . . . . . Sneak Attacks . | . . . . . . . . . . Combat Hostiles . | . . . . . . . . . . Follow-up Attacks . | . . . . . . . . . . Damage Inflicted 4924 | . 751 139 221 . . 875 1255 1683 . Guns 276 | . 153 . 19 . . . . 104 . Cannons 4406 | . 598 139 130 . . 872 1200 1467 . Explosions 94 | . . . . . . . . 94 . Melee 117 | . . . 72 . . . 45 . . Ramming 31 | . . . . . . 3 10 18 . Kinetic 1562 | . 153 . 19 . . 480 . 910 . Thermal 3214 | . 598 139 130 . . 392 1200 755 . Explosive . | . . . . . . . . . . Electromagnetic . | . . . . . . . . . . Impact . | . . . . . . . . . . Slashing 117 | . . . 72 . . . 45 . . Piercing . | . . . . . . . . . . Highest Corruption 5 | . . . . . . . . 5 . Average Corruption 3 | . . . . . . . . 3 . Corruption Purged 2 | . . . . . . . . 2 . Corruption Blocked . | . . . . . . . . . . Effects 1 | . . . . . . . . 1 . Matter Fused 1 | . . . . . . . . 1 . Overload Shots . | . . . . . . . . . . Overflow Damage 173 | . . . . . . 37 8 128 . Projectiles 99 | . . . . . . 37 8 54 . Explosions 74 | . . . . . . . . 74 . Melee . | . . . . . . . . . . Knockbacks 10 | . . . . . . 4 . 6 . Impact . | . . . . . . . . . . Kinetic 10 | . . . . . . 4 . 6 . Secondary . | . . . . . . . . . . Self-Inflicted Damage 118 | . . . . . . 1 . 117 . Shots 2 | . . . . . . . . 2 . Rammed 8 | . . . . . . 2 . 6 . Targets Rammed 9 | . . . . . . 2 1 6 . Kicked . | . . . . . . . . . . Crushed 1 | . . . . . . . 1 . . Highest Temperature 249 | . 249 195 225 . . . 128 19 . Average Temperature 66 | . 70 106 82 . . . 38 8 . Received Heat Transfer 1233 | . 228 69 350 . . 162 315 42 67 Siege Activations . | . . . . . . . . . . Martial Activations . | . . . . . . . . . . Shielding Activations . | . . . . . . . . . . Robots Disrupted . | . . . . . . . . . . Combat Hostiles . | . . . . . . . . . . Robots Corrupted . | . . . . . . . . . . Combat Hostiles . | . . . . . . . . . . Parts Fried . | . . . . . . . . . . Impact Corruptions . | . . . . . . . . . . Robots Melted . | . . . . . . . . . . Combat Hostiles . | . . . . . . . . . . Parts Melted 11 | . 3 2 . . . . 4 2 . Heat Transferred 5196 | . 1258 296 259 . . 533 1800 1050 . Parts Sabotaged . | . . . . . . . . . . Parts Stolen . | . . . . . . . . . . Parts Stripped . | . . . . . . . . . . Power Chain Reactions . | . . . . . . . . . . Alert | -11 -10 -10 -10 -9 -6 -6 -5 -4 -3 ------- Run | Yrd Mat Min Sub Scr Fac DSF Fac Fac Res Maximum Alert Level 1 | . . . . . . 1 . . . Low Security (%) 97 | 100 100 100 . . 100 80 100 100 100 Level 1 2 | . . . . . . 19 . . . Level 2 . | . . . . . . . . . . Level 3 . | . . . . . . . . . . Level 4 . | . . . . . . . . . . Level 5 . | . . . . . . . . . . High Security . | . . . . . . . . . . Max Security . | . . . . . . . . . . Sterilizations 1 | . . . . . . 1 . . . Peak Influence 231 | . 118 65 . . 5 231 157 134 110 Initial 121 | . . 23 . . . . 121 37 . Average 53 | . 60 8 . . . 97 101 45 42 Influence Increases 1615 | . 373 65 . . 5 271 340 411 150 Destroy 0b10 Robot/C 860 | . 220 40 . . . 200 240 160 . Destroy 0b10 Robot/NC 35 | . 10 . . . . 5 10 10 . Destroy Leader 184 | . 64 10 . . . 30 40 40 . Allied During Kill 47 | . . . . . . 21 26 . . Successful Hack 53 | . 48 . . . 5 . . . . Disable Machine 150 | . 30 15 . . . . . 105 . Destroy Structure 121 | . 1 . . . . . 24 96 . Lose Combat Pursuer 165 | . . . . . . 15 . . 150 Influence Decreases 1545 | . 312 126 . . 5 40 494 488 80 Entered New Map 188 | . . 38 . . . . 110 40 . Time Decay 947 | . 282 88 . . 5 . 254 278 40 Lost Part 390 | . 30 . . . . 40 110 170 40 Lost Ally 20 | . . . . . . . 20 . . Squads Dispatched 15 | . 3 . . . 1 1 6 4 . Investigation 1 | . 1 . . . . . . . . Extermination 3 | . . . . . 1 . 1 1 . Reinforcement 10 | . 2 . . . . 1 4 3 . Assault . | . . . . . . . . . . Garrison 1 | . . . . . . . 1 . . Intercept . | . . . . . . . . . . Searches Triggered . | . . . . . . . . . . Construction Impeded 2 | . . . . . . . 1 1 . Haulers Reinforced 2 | . . . . . . . 1 1 . Active Scanning Responses . | . . . . . . . . . . Cargo Convoy Interrupts . | . . . . . . . . . . Stealth | -11 -10 -10 -10 -9 -6 -6 -5 -4 -3 --------- Run | Yrd Mat Min Sub Scr Fac DSF Fac Fac Res Distress Signals 6 | . 3 . . . . . . 1 2 Communications Jammed . | . . . . . . . . . . Distress Signals . | . . . . . . . . . . Times Spotted 102 | . 20 4 3 . . 10 23 21 21 Peak Tracking Total 11 | . 4 2 1 . . 4 11 7 11 Tactical Retreats 4 | . . . . . . 1 . . 3 Traps | -11 -10 -10 -10 -9 -6 -6 -5 -4 -3 ------- Run | Yrd Mat Min Sub Scr Fac DSF Fac Fac Res Traps Triggered 4 | . 1 . . . . 2 . . 1 Indirectly . | . . . . . . . . . . Trap Hack Attempts . | . . . . . . . . . . Triggered . | . . . . . . . . . . Disarmed . | . . . . . . . . . . Reprogrammed . | . . . . . . . . . . Reused . | . . . . . . . . . . Traps Extracted . | . . . . . . . . . . Installed . | . . . . . . . . . . Triggered . | . . . . . . . . . . Machines | -11 -10 -10 -10 -9 -6 -6 -5 -4 -3 ---------- Run | Yrd Mat Min Sub Scr Fac DSF Fac Fac Res Machines Disabled 10 | . 2 1 . . . . . 7 . Max in Single Turn 4 | . 1 1 . . . . . 4 . Garrison Access 1 | . . . . . . . . 1 . Machines Repaired . | . . . . . . . . . . Machines Dismantled . | . . . . . . . . . . Machines Sabotaged . | . . . . . . . . . . Overloaded Fab Kills . | . . . . . . . . . . Hacking | -11 -10 -10 -10 -9 -6 -6 -5 -4 -3 --------- Run | Yrd Mat Min Sub Scr Fac DSF Fac Fac Res Machines Accessed 12 | . 4 . . 3 3 . . 1 1 Terminals 6 | . 4 . . . 2 . . . . Fabricators 1 | . . . . . . . . . 1 Repair Stations 1 | . . . . . 1 . . . . Recycling Units . | . . . . . . . . . . Scanalyzers . | . . . . . . . . . . Garrison Access 1 | . . . . . . . . 1 . Total Hacks 28 | . 11 . . 10 4 . . 1 2 Successful 20 | . 7 . . 10 1 . . 1 1 Failed 8 | . 4 . . . 3 . . . 1 Catastrophic 3 | . 2 . . . 1 . . . . Database Lockouts . | . . . . . . . . . . Manual 4 | . 4 . . . . . . . . Terminals 13 | . 11 . . . 2 . . . . Fabricators 2 | . . . . . . . . . 2 Repair Stations 2 | . . . . . 2 . . . . Recycling Units . | . . . . . . . . . . Scanalyzers . | . . . . . . . . . . Garrison Access 1 | . . . . . . . . 1 . Terminal Hacks 18 | . 7 . . 10 1 . . . . Record 4 | . . . . 4 . . . . . Robot Analysis 6 | . . . . 6 . . . . . Prototype ID Bank 1 | . 1 . . . . . . . . Open DSF 1 | . . . . . 1 . . . . Branch Access Points 1 | . 1 . . . . . . . . Emergency Access Points 1 | . 1 . . . . . . . . Alert Level 1 | . 1 . . . . . . . . Locate Traps 1 | . 1 . . . . . . . . Reinforcement Status 1 | . 1 . . . . . . . . Registered Components 1 | . 1 . . . . . . . . Fabricator Hacks 1 | . . . . . . . . . 1 Network Status 1 | . . . . . . . . . 1 Repair Station Hacks . | . . . . . . . . . . Recycling Unit Hacks . | . . . . . . . . . . Scanalyzer . | . . . . . . . . . . Garrison Access Hacks 1 | . . . . . . . . 1 . Seal Access 1 | . . . . . . . . 1 . Unauthorized Hacks . | . . . . . . . . . . Terminals . | . . . . . . . . . . Fabricators . | . . . . . . . . . . Repair Stations . | . . . . . . . . . . Recycling Units . | . . . . . . . . . . Scanalyzers . | . . . . . . . . . . Garrison Access . | . . . . . . . . . . Data Cores Recovered . | . . . . . . . . . . Used . | . . . . . . . . . . Hacking Detections 7 | . 4 . . . 2 . . . 1 Full Trace Events 1 | . 1 . . . . . . . . Feedback Events . | . . . . . . . . . . Feedback Blocked . | . . . . . . . . . . Robot Schematics Acquired . | . . . . . . . . . . Robots Built . | . . . . . . . . . . Authchips . | . . . . . . . . . . Time . | . . . . . . . . . . Total Robot Build Rating . | . . . . . . . . . . Part Schematics Acquired . | . . . . . . . . . . Parts Built . | . . . . . . . . . . Authchips . | . . . . . . . . . . Time . | . . . . . . . . . . Total Part Build Rating . | . . . . . . . . . . Parts Repaired . | . . . . . . . . . . Time . | . . . . . . . . . . Parts Recycled . | . . . . . . . . . . Recycled Matter . | . . . . . . . . . . Retrieved Matter . | . . . . . . . . . . Retrieved Components . | . . . . . . . . . . Parts Scanalyzed . | . . . . . . . . . . Part Schematics Acquired . | . . . . . . . . . . Parts Damaged . | . . . . . . . . . . Bothacking | -11 -10 -10 -10 -9 -6 -6 -5 -4 -3 ------------ Run | Yrd Mat Min Sub Scr Fac DSF Fac Fac Res Used RIF Installer . | . . . . . . . . . . Robots Hacked . | . . . . . . . . . . Non-combat . | . . . . . . . . . . Combat . | . . . . . . . . . . Robot Hacks Applied . | . . . . . . . . . . Relay Couplers Released . | . . . . . . . . . . Fabnet Peak Effective % . | . . . . . . . . . . Robots Rewired . | . . . . . . . . . . Allies Hacked . | . . . . . . . . . . Hacks Repelled . | . . . . . . . . . . Allies | -11 -10 -10 -10 -9 -6 -6 -5 -4 -3 -------- Run | Yrd Mat Min Sub Scr Fac DSF Fac Fac Res Total Allies 1 | . . . . . . 1 . . . Largest Group 1 | . . . . . . 1 1 . . Highest-Rated Group 50 | . . . . . . 50 50 . . Highest-Rated Ally 50 | . . . . . . 50 50 . . Total Orders 1 | . . . . . . 1 . . . GUARD 1 | . . . . . . 1 . . . Ally Attacks 53 | . . . . . . 12 41 . . Total Damage 523 | . . . . . . 104 419 . . Kills 9 | . . . . . . 5 4 . . Allies Corrupted . | . . . . . . . . . . Allies Melted . | . . . . . . . . . . Intel | -11 -10 -10 -10 -9 -6 -6 -5 -4 -3 ------- Run | Yrd Mat Min Sub Scr Fac DSF Fac Fac Res Active Infowar (turns) 1811 | . 218 . . . 217 127 451 798 . Sensors 336 | . 166 . . . 46 115 . 9 . Terrain 1246 | . . . . . . . 451 795 . Structural 368 | . 52 . . . 207 109 . . . ECM 1 | . . . . . . . . 1 . Robot Analysis Total 6 | . . . . 6 . . . . . Derelict Logs Recovered 2 | . . 1 1 . . . . . . Drone Launches . | . . . . . . . . . . Drone Recoveries . | . . . . . . . . . . Exploration | -11 -10 -10 -10 -9 -6 -6 -5 -4 -3 ------------- Run | Yrd Mat Min Sub Scr Fac DSF Fac Fac Res Turns Passed 6001 | 40 675 561 1782 836 222 406 547 816 116 Spaces Moved 3150 | 31 376 263 917 647 132 141 201 231 211 Core 225 | 3 . . . 2 . . . 10 210 Treads 361 | . . . . . . 28 201 132 . Legs 1798 | . 133 263 917 397 . . . 87 1 Wheels 764 | 28 243 . . 248 132 113 . . . Hover 2 | . . . . . . . . 2 . Flight . | . . . . . . . . . . Fastest Speed 50 | 50 90 190 120 115 130 115 148 50 50 Average Speed 154 | 87 125 190 176 126 130 133 197 241 51 Slowest Speed 800 | 100 190 190 190 500 130 330 240 800 110 Overloaded Moves . | . . . . . . . . . . Propulsion Burnouts . | . . . . . . . . . . Robots Hopped . | . . . . . . . . . . Potential Cave-ins . | . . . . . . . . . . Cave-ins Triggered . | . . . . . . . . . . Exploration Rate (%) 32 | 3 52 60 55 48 4 81 5 8 9 Regions Visited 9 Branch Regions 3 Pre-discovered Areas . | . . . . . . . . . . Known Exits Taken 7 | . 1 1 1 1 1 . 1 1 . Unknown Exits Taken 1 | 1 . . . . . . . . . Scrap Searched 6 | . . 1 3 2 . . . . . Spaces Dug 1 | . . . . . . . . 1 . Terrain Destroyed 69 | . . . 1 . . . 9 59 . Melee . | . . . . . . . . . . Projectile 32 | . . . 1 . . . 9 22 . AOE 37 | . . . . . . . . 37 . Terrain Rammed . | . . . . . . . . . . Walls Destroyed . | . . . . . . . . . . Machines Disabled . | . . . . . . . . . . Actions | -11 -10 -10 -10 -9 -6 -6 -5 -4 -3 --------- Run | Yrd Mat Min Sub Scr Fac DSF Fac Fac Res Total 3962 | 40 503 311 1014 666 185 324 297 405 217 Wait 309 | . 48 27 32 . 30 56 30 86 . Move 3142 | 30 375 262 916 646 131 140 200 231 211 Hop . | . . . . . . . . . . Pick Up 88 | 4 12 6 4 8 9 32 5 7 1 Fast Attach 45 | 6 5 . 3 2 . 9 8 8 4 Attach 43 | . 3 . 3 1 6 4 11 15 . Detach 20 | . 3 . 3 3 . 5 1 5 . Swap 24 | . 7 5 4 2 2 . 3 1 . Drop 77 | . 11 4 7 4 7 30 7 6 1 Fire 171 | . 39 7 29 . . 27 29 40 . Melee 16 | . . . 13 . . . 2 1 . Ram 7 | . . . . . . 2 . 5 . Kick . | . . . . . . . . . . Crush 1 | . . . . . . . 1 . . Escape Stasis 16 | . . . . . . 16 . . . Rewire 3 | . . . . . . 3 . . . Trap . | . . . . . . . . . . Miscellaneous . | . . . . . . . . . . Route ------- -11/Scrapyard -10/Materials (discovered 2 exits: *Mat / *Min) -10/Mines (discovered 3 exits: *Mat x2 / *Sub) -10/Subcaves (discovered 2 exits: *Mat / *Scr) -9/Scraptown -6/Factory -6/DSF -5/Factory -4/Factory -3/Research History --------- Turn | Location | Event 2 | -11/Scrapyard | Met Revision 17 19 | -11/Scrapyard | Discovered new exit (range 15) 41 | -11/Scrapyard | Entered Materials 301 | -10/Materials | Identified exit to Mines 310 | -10/Materials | Build established: Mutant 585 | -10/Materials | Discovered new exit (range 4) 716 | -10/Materials | Entered Mines 752 | -10/Mines | Met a Derelict bent on vengeance 806 | -10/Mines | Discovered new exit (range 10) 834 | -10/Mines | Identified exit to Materials 885 | -10/Mines | Discovered exit to Materials (range 11) 1214 | -10/Mines | Learned location of 1 exit from Materials 1242 | -10/Mines | Discovered new exit (range 5) 1252 | -10/Mines | Identified exit to Subcaves 1253 | -10/Mines | Assembled infested the area 1258 | -10/Mines | Assisted by a Guerilla fighting off Assembled 1277 | -10/Mines | Entered Subcaves 1278 | -10/Subcaves | Approached by a straggling Scientist 1438 | -10/Subcaves | Shifting Twisted Machinery released Sub. Beam Cannon 1480 | -10/Subcaves | Learned Materials trap positions 1769 | -10/Subcaves | Shifting Twisted Machinery released Sub. Optics 1774 | -10/Subcaves | Discovered new exit (range 6) 1785 | -10/Subcaves | Identified exit to Materials 1991 | -10/Subcaves | A swath of the cavern ceiling suddenly collapsed 2198 | -10/Subcaves | Core integrity fell below 50% 2228 | -10/Subcaves | Lost 3 parts (1p1n1w) 3031 | -10/Subcaves | Scientist uncovered a shortcut to Scraptown 3055 | -10/Subcaves | Identified exit to Scraptown 3059 | -10/Subcaves | Entered Scraptown 3137 | -9/Scraptown | Visited The Evicted 3168 | -9/Scraptown | Visited Shadow of the Wyrm 3324 | -9/Scraptown | Visited UFD Registry 3324 | -9/Scraptown | Registered with UFD as "Matrixgrid" 3349 | -9/Scraptown | Visited Chapter 10 3373 | -9/Scraptown | Visited Science Testing Area 3390 | -9/Scraptown | Visited Abandonware Association 3408 | -9/Scraptown | Learned abandonware demo "REVENGE.EXE" 3538 | -9/Scraptown | Visited Botcube Research 3552 | -9/Scraptown | Found Botcube 3581 | -9/Scraptown | Visited Supply Room 3650 | -9/Scraptown | Visited Observation Area 3667 | -9/Scraptown | Visited Analyses Database 3695 | -9/Scraptown | Visited Research Penetration Think Tank 3722 | -9/Scraptown | Visited LU-1G1's Boring Crew 3825 | -9/Scraptown | Met Optimus 3825 | -9/Scraptown | Accepted into 0bPrime 3893 | -9/Scraptown | Discovered new exit (range 3) 3894 | -9/Scraptown | Identified exit to Factory 3895 | -9/Scraptown | Entered Factory 3895 | -6/Factory | Evolved 8 slots: Power x1, Propulsion x4, Utility x3 4110 | -6/Factory | Identified exit to DSF 4117 | -6/Factory | Entered DSF 4145 | -6/DSF | Botcube activated 4157 | -6/DSF | Botcube completed mutation into legged form, armed with 2 guns. 4191 | -6/DSF | Build established: Skirmisher 4257 | -6/DSF | Additional patrols routed to DSF 4380 | -6/DSF | Discovered new exit (range 11) 4432 | -6/DSF | Identified exit to Factory 4453 | -6/DSF | Sterilization system engaged 4473 | -6/DSF | Ambient heat levels rising (+10) 4488 | -6/DSF | Ambient heat levels rising (+10) 4503 | -6/DSF | Ambient heat levels rising (+10) 4518 | -6/DSF | Ambient heat levels rising (+10) 4523 | -6/DSF | Entered Factory 4523 | -5/Factory | Accompanied by 1 ally 4523 | -5/Factory | Evolved 2 slots: Utility x2 4549 | -5/Factory | Build established: Mutant 4976 | -5/Factory | Discovered new exit (range 14) 5037 | -5/Factory | Garrison activated, responded to threat 5053 | -5/Factory | Build established: Scavenger-Mutant 5068 | -5/Factory | Identified exit to Factory 5070 | -5/Factory | Entered another Factory area 5070 | -4/Factory | Evolved 2 slots: Utility x1, Weapon x1 5098 | -4/Factory | Lost 11 parts (1p7n3u) 5368 | -4/Factory | Build established: Scavenger-Skirmisher 5871 | -4/Factory | Core integrity fell below 50% 5883 | -4/Factory | Discovered new exit (range 5) 5884 | -4/Factory | Core integrity fell below 20% 5886 | -4/Factory | Identified exit to Research 5886 | -4/Factory | Entered Research 5886 | -3/Research | Evolved 2 slots: Propulsion x2 5899 | -3/Research | Lost 16 parts (2p4n7u3w) 5968 | -3/Research | Core integrity fell below 50% 5984 | -3/Research | Core integrity fell below 20% 6002 | -3/Research | Destroyed by G-67 Veteran with Field Laser Last Messages --------------- 05941_ Triggered Segregator Trap. 05941_ Arcs of energy rise from the floor. 05941_ Biometal Leg blown off. 05941_ Adv. Signal Interpreter blown off. 05941_ R-10 Processor collects Biometal Leg. 05956_ Adv. Hacking Suite destroyed. 05958_ Slug penetrates Wall. 05958_ K-01 Serf collects debris. 05959_ Acquired 10 matter. 05959_ Penetrated by Slug. 05959_ Slug penetrates Wall. 05960_ Penetrated by Slug. 05960_ Slug penetrates Wall. 05965_ Penetrated by Slug. 05968_ R-10 Processor destroyed. 05968_ Penetrated by Slug. 05985_ Acquired Imp. Reaction Control System. 05990_ Slug penetrates Wall. 05991_ Imp. Reaction Control System destroyed. 06002_ Critical hit (Burn: +50). Map ----- +----------------------------------------------------+ | ???????????????????????????????????? | | ???????????????????????????????????? | | ???????????????????????????????????? | | ???????????????????????????????????? | | ???????????????????????????????????? | | ???????????????????????????????????? | | ???????????????????????????????????? | | ???????????????????????????????????? | | ???????????????????????????????????? | | ???????????????????????????????????? | | ???????????????????????????????????? | | ???????????????????????######??##??? | | ???????????????????????# ?? #??? | | ???????????????????????# #??? | | ???????????????????????# "" #??? | | ???????????????????????# "" #??? | | ???????????????????????# T" #??? | | ???????????????????????# "" #??? | | ????????????????????# ?# "" #??? | | ??????????????????### ?# #??? | | ?????????????????? # ?# #??? | | ???????????????????/ ?#####+####??? | | ???????????????????? ??# #??? | | ????????????????????# ??# #??? | | ????????????????????# ### #??? | | ????????????????????# Y@ #??? | | ????????????????????# #??? | | ????????????????????# #??? | | ????????????????????#!! #??? | | ????????????????????#! #??? | | ????????????????????# #??? | | ????????????????????# #??? | | ??????????????#+#???# ^ #??? | | ??????????????# #???#* s #??? | | ??????????????# #???#* [ ##??? | | ??????????????# #???#s [ #???? | | ??????????????# #???# g #???? | | ??????????##### ##### s #???? | | ??????????# #???? | | ??????????# ###???? | | ??????????# #?????? | | ??????????# #?????? | | ??????????# +?????? | | ??????????# #?????? | | ??????????# ############### #?????? | | ??????????# #??#######????? #?????? | | ########### #? #??????#?????? | | #? ?????????????? | | ??# # ! """ ?????????????? | | ??# # """ #????????????? | +----------------------------------------------------+ Best States ------------- Heat Dissipation 116 Energy Generation 31 Energy Capacity 420 Matter Stores 300 Matter Capacity 300 Sight Range 16 Robot Scan Range 16 Terrain Scan Range 14 Terrain Scan Density 85 Armor Coverage 225 Evasion (%) 55 Recoil Reduction 6 Kinecelleration 30 Offensive Hacking 14 Item Schematics ----------------- None Robot Schematics ------------------ None Fabricated ------------ Nothing Repaired ---------- Nothing Alien Tech Used ----------------- None Achievements -------------- None Challenges ------------ None Game ------ Seed BarrageNetworkedScrapsphere Manual? 0 Play Time 01:20:03 Cumulative 85.1 hours Start 2025.07.15 @ 20:51:54 End 2025.07.15 @ 22:30:22 Sessions 1 Manual Loads 0 Difficulty Rogue Special Mode None Game No. 80 Rogue 77 Adventurer 1 Explorer 2 Win Type - Total 0 Types 0/0/0/0/0/0/0/0/0/0 Lore% 30 Gallery% 46 Achievement% 36 Wizard Run 0 Options --------- Layout 0 ASCII 0 Keyboard 0 Movement Mouse Keybinds 0 Fullscreen 2 Font 24/Smallcaps Map View 76x50 Zoom Use 1% Tactical HUD 1 Map Filters NONE Filters NONE Steam 1 RUN: ad59b48a-1cb2-4b72-9166-14b999fc4c3e